[Event "Early-Titled-Tuesday-Blitz-June-18-2024"]
[Site "Chess.com"]
[Date "2024.06.18"]
[Round "11"]
[White "js20000"]
[Black "dosto07"]
[Result "1-0"]
[WhiteElo "2799"]
[BlackElo "2621"]
[TimeControl "180+1"]
[EndTime "10:08:15 PDT"]
[Termination "js20000 won by checkmate"]

1. e4 {[%clk 0:03:00.9]} 1... e5 {[%clk 0:03:00.1]} 2. Nf3 {[%clk 0:03:01.2]}
2... Nc6 {[%clk 0:03:00.6]} 3. Bc4 {[%clk 0:03:01.5]} 3... Bc5 {[%clk
0:03:00.1]} 4. d3 {[%clk 0:03:01.4]} 4... Nf6 {[%clk 0:03:00.3]} 5. O-O {[%clk
0:03:01.7]} 5... d6 {[%clk 0:03:00.7]} 6. a4 {[%clk 0:03:01.3]} 6... a6 {[%clk
0:03:00.9]} 7. c3 {[%clk 0:03:01.2]} 7... Ba7 {[%clk 0:03:01.2]} 8. Re1 {[%clk
0:02:59.2]} 8... Ng4 {[%clk 0:02:43.8]} 9. d4 {[%clk 0:02:58.9]} 9... O-O {[%clk
0:02:43.4]} 10. h3 {[%clk 0:02:55.8]} 10... Nf6 {[%clk 0:02:40.1]} 11. Nbd2
{[%clk 0:02:55.4]} 11... exd4 {[%clk 0:02:39.4]} 12. Nf1 {[%clk 0:02:55.5]}
12... dxc3 {[%clk 0:02:35.8]} 13. bxc3 {[%clk 0:02:56.4]} 13... Be6 {[%clk
0:02:29.1]} 14. Bd3 {[%clk 0:02:52.5]} 14... Ne5 {[%clk 0:02:25.4]} 15. Bg5
{[%clk 0:02:51.2]} 15... h6 {[%clk 0:02:22.5]} 16. Bh4 {[%clk 0:02:49.5]} 16...
g5 {[%clk 0:02:19]} 17. Bg3 {[%clk 0:02:47.1]} 17... Nfd7 {[%clk 0:02:10.8]} 18.
Nd4 {[%clk 0:02:45.4]} 18... Qf6 {[%clk 0:02:00.4]} 19. Ne3 {[%clk 0:02:40.4]}
19... Nxd3 {[%clk 0:01:39.2]} 20. Qxd3 {[%clk 0:02:41.3]} 20... Nc5 {[%clk
0:01:31.9]} 21. Qc2 {[%clk 0:02:39.5]} 21... Rfe8 {[%clk 0:01:32.5]} 22. a5
{[%clk 0:02:34.4]} 22... Rad8 {[%clk 0:01:13.3]} 23. Rab1 {[%clk 0:02:27.6]}
23... Qg6 {[%clk 0:01:02.7]} 24. Nef5 {[%clk 0:02:21.9]} 24... Bc8 {[%clk
0:00:55.1]} 25. e5 {[%clk 0:02:16.6]} 25... dxe5 {[%clk 0:00:40.7]} 26. Rxe5
{[%clk 0:02:15.5]} 26... Ne6 {[%clk 0:00:29.9]} 27. Rbe1 {[%clk 0:01:59.4]}
27... Kh7 {[%clk 0:00:25.3]} 28. Qa2 {[%clk 0:01:22]} 28... Bxd4 {[%clk
0:00:22.7]} 29. Nxd4 {[%clk 0:01:20.6]} 29... Bd7 {[%clk 0:00:15.3]} 30. Nf3
{[%clk 0:01:11.7]} 30... Nf4 {[%clk 0:00:12.1]} 31. Bxf4 {[%clk 0:01:09.8]}
31... gxf4 {[%clk 0:00:11.5]} 32. Re7 {[%clk 0:01:08.3]} 32... Rxe7 {[%clk
0:00:09.2]} 33. Rxe7 {[%clk 0:01:09.2]} 33... Be6 {[%clk 0:00:07.4]} 34. Qe2
{[%clk 0:01:00.2]} 34... Rg8 {[%clk 0:00:07]} 35. Nh4 {[%clk 0:00:47.5]} 35...
Qf6 {[%clk 0:00:07.2]} 36. Rxc7 {[%clk 0:00:47.2]} 36... Qxh4 {[%clk 0:00:06.4]}
37. Qxe6 {[%clk 0:00:46.9]} 37... Rg7 {[%clk 0:00:02.1]} 38. Qf5+ {[%clk
0:00:45.2]} 38... Kh8 {[%clk 0:00:01]} 39. Rc8+ {[%clk 0:00:44.6]} 39... Rg8
{[%clk 0:00:01.1]} 40. Qe5+ {[%clk 0:00:40.7]} 40... f6 {[%clk 0:00:01.3]} 41.
Rxg8+ {[%clk 0:00:38.7]} 41... Kxg8 {[%clk 0:00:02.2]} 42. Qb8+ {[%clk
0:00:38.7]} 42... Kg7 {[%clk 0:00:02.2]} 43. Qxb7+ {[%clk 0:00:39.3]} 43... Kg6
{[%clk 0:00:02.8]} 44. Qxa6 {[%clk 0:00:39.4]} 44... Qg5 {[%clk 0:00:03.4]} 45.
Qd3+ {[%clk 0:00:37.2]} 45... Kg7 {[%clk 0:00:03]} 46. Qd7+ {[%clk 0:00:37.2]}
46... Kg6 {[%clk 0:00:02.5]} 47. a6 {[%clk 0:00:36.5]} 47... Qa5 {[%clk
0:00:01.8]} 48. a7 {[%clk 0:00:35.9]} 48... Qa1+ {[%clk 0:00:01.7]} 49. Kh2
{[%clk 0:00:35.3]} 49... f3 {[%clk 0:00:02.6]} 50. Qe8+ {[%clk 0:00:34.6]} 50...
Kf5 {[%clk 0:00:02.3]} 51. a8=Q {[%clk 0:00:35.5]} 51... Qxa8 {[%clk 0:00:01.2]}
52. g4+ {[%clk 0:00:33.8]} 52... Kf4 {[%clk 0:00:01]} 53. Qe3# {[%clk
0:00:33.1]} 1-0

[Event "Early-Titled-Tuesday-Blitz-June-18-2024"]
[Site "Chess.com"]
[Date "2024.06.18"]
[Round "11"]
[White "Bob_2004"]
[Black "Zavgorodniy_Sergiy"]
[Result "0-1"]
[WhiteElo "2755"]
[BlackElo "2619"]
[TimeControl "180+1"]
[EndTime "10:08:15 PDT"]
[Termination "Zavgorodniy_Sergiy won on time"]

1. d4 {[%clk 0:03:00.9]} 1... Nf6 {[%clk 0:02:55.5]} 2. c4 {[%clk 0:03:01.4]}
2... e6 {[%clk 0:02:53.3]} 3. Nc3 {[%clk 0:03:01.9]} 3... Bb4 {[%clk 0:02:53.3]}
4. f3 {[%clk 0:03:02]} 4... Nc6 {[%clk 0:02:49.2]} 5. e4 {[%clk 0:02:55.5]} 5...
e5 {[%clk 0:02:45.7]} 6. a3 {[%clk 0:02:56]} 6... Bxc3+ {[%clk 0:02:40.8]} 7.
bxc3 {[%clk 0:02:56.9]} 7... d6 {[%clk 0:02:40.5]} 8. Be3 {[%clk 0:02:50.3]}
8... h6 {[%clk 0:02:15.5]} 9. Ne2 {[%clk 0:02:47.3]} 9... b6 {[%clk 0:02:02.4]}
10. Ng3 {[%clk 0:02:47.5]} 10... Qd7 {[%clk 0:02:00.2]} 11. Bd3 {[%clk 0:02:21]}
11... Ba6 {[%clk 0:01:42.2]} 12. O-O {[%clk 0:02:20.8]} 12... Na5 {[%clk
0:01:40.5]} 13. Qe2 {[%clk 0:02:20.9]} 13... Qa4 {[%clk 0:01:39.3]} 14. f4
{[%clk 0:02:20.8]} 14... exf4 {[%clk 0:01:32.9]} 15. Bxf4 {[%clk 0:02:15.5]}
15... O-O-O {[%clk 0:01:30.2]} 16. e5 {[%clk 0:01:51.8]} 16... dxe5 {[%clk
0:01:17.5]} 17. Bxe5 {[%clk 0:01:52.7]} 17... Bxc4 {[%clk 0:01:12.8]} 18. Bxf6
{[%clk 0:01:46.4]} 18... gxf6 {[%clk 0:01:12.1]} 19. Rxf6 {[%clk 0:01:39.3]}
19... Rhe8 {[%clk 0:01:06.3]} 20. Qf3 {[%clk 0:01:33.7]} 20... Kb8 {[%clk
0:01:06.4]} 21. Bxc4 {[%clk 0:01:28]} 21... Qxc4 {[%clk 0:01:06.5]} 22. Rxf7
{[%clk 0:01:26.1]} 22... Rxd4 {[%clk 0:01:02.1]} 23. Rf1 {[%clk 0:01:13.3]}
23... Rd3 {[%clk 0:00:59.3]} 24. Qh5 {[%clk 0:01:05.8]} 24... Red8 {[%clk
0:00:41.9]} 25. Qxh6 {[%clk 0:01:03]} 25... Qxc3 {[%clk 0:00:40]} 26. Qf4 {[%clk
0:00:54.7]} 26... R3d4 {[%clk 0:00:34.8]} 27. Qf3 {[%clk 0:00:51]} 27... Qc5
{[%clk 0:00:34.4]} 28. Kh1 {[%clk 0:00:50]} 28... Nc4 {[%clk 0:00:34.1]} 29. Qh5
{[%clk 0:00:37.7]} 29... R4d5 {[%clk 0:00:32.2]} 30. Qh7 {[%clk 0:00:28.4]}
30... Ne3 {[%clk 0:00:26]} 31. Rg1 {[%clk 0:00:23.7]} 31... Rd1 {[%clk
0:00:25.5]} 32. Nf1 {[%clk 0:00:17.9]} 32... Ng4 {[%clk 0:00:20]} 33. h3 {[%clk
0:00:15.9]} 33... Nf2+ {[%clk 0:00:18.2]} 34. Kh2 {[%clk 0:00:16.4]} 34... Qe5+
{[%clk 0:00:17.7]} 35. g3 {[%clk 0:00:10.6]} 35... Ng4+ {[%clk 0:00:13.7]} 36.
hxg4 {[%clk 0:00:04.4]} 36... Rh8 {[%clk 0:00:13.6]} 37. Kg2 {[%clk 0:00:03]}
37... Rxh7 {[%clk 0:00:12.5]} 38. Rf4 {[%clk 0:00:03.7]} 38... Re1 {[%clk
0:00:09.7]} 39. Nd2 {[%clk 0:00:02.6]} 39... Re2+ {[%clk 0:00:09.7]} 40. Kf3
{[%clk 0:00:02.4]} 40... Rxd2 {[%clk 0:00:09.2]} 0-1

[Event "Early-Titled-Tuesday-Blitz-June-18-2024"]
[Site "Chess.com"]
[Date "2024.06.18"]
[Round "11"]
[White "AlexeiShirov"]
[Black "SahibSinghKnight"]
[Result "0-1"]
[WhiteElo "2851"]
[BlackElo "2718"]
[TimeControl "180+1"]
[EndTime "10:08:16 PDT"]
[Termination "SahibSinghKnight won by resignation"]

1. e4 {[%clk 0:03:00.9]} 1... c5 {[%clk 0:02:57.7]} 2. Nf3 {[%clk 0:02:59.9]}
2... d6 {[%clk 0:02:54.9]} 3. d4 {[%clk 0:02:59]} 3... cxd4 {[%clk 0:02:55.8]}
4. Nxd4 {[%clk 0:02:58.6]} 4... Nf6 {[%clk 0:02:55.9]} 5. Nc3 {[%clk 0:02:58.2]}
5... a6 {[%clk 0:02:56.1]} 6. Be3 {[%clk 0:02:57.3]} 6... e5 {[%clk 0:02:54.3]}
7. Nb3 {[%clk 0:02:56.6]} 7... Be7 {[%clk 0:02:53.1]} 8. f3 {[%clk 0:02:55.7]}
8... O-O {[%clk 0:02:51.2]} 9. Qd2 {[%clk 0:02:54.6]} 9... Be6 {[%clk
0:02:48.9]} 10. O-O-O {[%clk 0:02:53.7]} 10... Nbd7 {[%clk 0:02:47.3]} 11. g4
{[%clk 0:02:53.1]} 11... b5 {[%clk 0:02:47.2]} 12. g5 {[%clk 0:02:52.8]} 12...
b4 {[%clk 0:02:47.7]} 13. Ne2 {[%clk 0:02:47.7]} 13... Nh5 {[%clk 0:02:48.1]}
14. Ng3 {[%clk 0:02:39.7]} 14... Nf4 {[%clk 0:02:47.8]} 15. h4 {[%clk
0:02:37.5]} 15... a5 {[%clk 0:02:43.7]} 16. Kb1 {[%clk 0:02:34.1]} 16... a4
{[%clk 0:02:42.4]} 17. Nd4 {[%clk 0:02:33.5]} 17... exd4 {[%clk 0:01:38.4]} 18.
Bxf4 {[%clk 0:02:32.7]} 18... b3 {[%clk 0:01:38.8]} 19. Nf5 {[%clk 0:02:24.1]}
19... bxc2+ {[%clk 0:01:25.6]} 20. Qxc2 {[%clk 0:02:22.7]} 20... Bxf5 {[%clk
0:01:16.9]} 21. exf5 {[%clk 0:02:22.1]} 21... Qb6 {[%clk 0:01:08.9]} 22. Bc4
{[%clk 0:02:08.5]} 22... Rfc8 {[%clk 0:01:01.4]} 23. g6 {[%clk 0:02:00.1]} 23...
d5 {[%clk 0:00:57.4]} 24. gxf7+ {[%clk 0:01:56]} 24... Kf8 {[%clk 0:00:55.8]}
25. Rhg1 {[%clk 0:01:32.5]} 25... dxc4 {[%clk 0:00:33]} 26. Rde1 {[%clk
0:01:23.4]} 26... Bf6 {[%clk 0:00:30.8]} 27. Re6 {[%clk 0:01:19.7]} 27... d3
{[%clk 0:00:15.9]} 28. Qg2 {[%clk 0:01:12.7]} 28... Qd4 {[%clk 0:00:15.9]} 29.
Be3 {[%clk 0:00:47.9]} 29... Qxh4 {[%clk 0:00:14.1]} 30. Bf2 {[%clk 0:00:39.7]}
30... Qh5 {[%clk 0:00:05.6]} 31. Bg3 {[%clk 0:00:35.4]} 31... Qxf5 {[%clk
0:00:04.7]} 32. Bd6+ {[%clk 0:00:33.7]} 32... Kxf7 {[%clk 0:00:05.1]} 33. Re7+
{[%clk 0:00:33.1]} 33... Kg8 {[%clk 0:00:05.5]} 34. Rxg7+ {[%clk 0:00:31.3]}
34... Kh8 {[%clk 0:00:05.9]} 35. Rg4 {[%clk 0:00:15.6]} 35... d2+ {[%clk
0:00:05.9]} 36. Ka1 {[%clk 0:00:15.2]} 36... c3 {[%clk 0:00:06.3]} 37. Ba3
{[%clk 0:00:10.8]} 37... c2 {[%clk 0:00:06.6]} 0-1

[Event "Early-Titled-Tuesday-Blitz-June-18-2024"]
[Site "Chess.com"]
[Date "2024.06.18"]
[Round "11"]
[White "AlphaPerseii"]
[Black "CrimeFightingSpider07"]
[Result "1-0"]
[WhiteElo "2417"]
[BlackElo "2521"]
[TimeControl "180+1"]
[EndTime "10:08:16 PDT"]
[Termination "AlphaPerseii won by resignation"]

1. Nf3 {[%clk 0:03:00.9]} 1... Nf6 {[%clk 0:02:58.9]} 2. b3 {[%clk 0:03:00.9]}
2... g6 {[%clk 0:02:58.5]} 3. Bb2 {[%clk 0:03:01.3]} 3... Bg7 {[%clk 0:02:59.2]}
4. e3 {[%clk 0:03:01.6]} 4... O-O {[%clk 0:02:59.8]} 5. Be2 {[%clk 0:03:01.6]}
5... d5 {[%clk 0:03:00.3]} 6. d4 {[%clk 0:03:01.2]} 6... c5 {[%clk 0:02:56.7]}
7. c4 {[%clk 0:02:56.8]} 7... Bg4 {[%clk 0:02:56.6]} 8. O-O {[%clk 0:02:55]}
8... cxd4 {[%clk 0:02:55.2]} 9. exd4 {[%clk 0:02:53.7]} 9... Nc6 {[%clk
0:02:44.3]} 10. c5 {[%clk 0:02:47.5]} 10... Ne4 {[%clk 0:02:42.4]} 11. Nbd2
{[%clk 0:02:34.2]} 11... Nxd2 {[%clk 0:02:39.3]} 12. Qxd2 {[%clk 0:02:33.9]}
12... Bxf3 {[%clk 0:02:39.1]} 13. Bxf3 {[%clk 0:02:34.2]} 13... e5 {[%clk
0:02:38.4]} 14. dxe5 {[%clk 0:02:30.6]} 14... Nxe5 {[%clk 0:02:38.3]} 15. Bxe5
{[%clk 0:01:45.6]} 15... Bxe5 {[%clk 0:02:37.2]} 16. Rac1 {[%clk 0:01:41.6]}
16... Qc7 {[%clk 0:02:34.9]} 17. g3 {[%clk 0:01:41.8]} 17... Rad8 {[%clk
0:02:31.7]} 18. Rfd1 {[%clk 0:01:15.3]} 18... d4 {[%clk 0:02:23]} 19. Qe2 {[%clk
0:01:14.3]} 19... Rfe8 {[%clk 0:02:21.2]} 20. Qc4 {[%clk 0:01:14.4]} 20... Re7
{[%clk 0:02:18.5]} 21. b4 {[%clk 0:01:12.8]} 21... Red7 {[%clk 0:02:13.6]} 22.
Rd3 {[%clk 0:01:07.7]} 22... b6 {[%clk 0:02:09.4]} 23. c6 {[%clk 0:01:03.1]}
23... Rd6 {[%clk 0:02:08.9]} 24. b5 {[%clk 0:01:01]} 24... Bf6 {[%clk
0:02:08.5]} 25. Re1 {[%clk 0:00:59.5]} 25... Kf8 {[%clk 0:02:07.9]} 26. a4
{[%clk 0:00:58.3]} 26... Re8 {[%clk 0:02:07.8]} 27. Rdd1 {[%clk 0:00:55]} 27...
Rxe1+ {[%clk 0:02:04.6]} 28. Rxe1 {[%clk 0:00:55]} 28... d3 {[%clk 0:02:04.9]}
29. Rd1 {[%clk 0:00:54.1]} 29... d2 {[%clk 0:02:05.2]} 30. Bd5 {[%clk
0:00:45.3]} 30... Rd8 {[%clk 0:01:48.4]} 31. Rxd2 {[%clk 0:00:42.8]} 31... Qe7
{[%clk 0:01:48.7]} 32. Re2 {[%clk 0:00:37.4]} 32... Qc7 {[%clk 0:01:36.9]} 33.
Kg2 {[%clk 0:00:33.9]} 33... Re8 {[%clk 0:01:33.5]} 34. Rd2 {[%clk 0:00:25.3]}
34... Rd8 {[%clk 0:01:33.4]} 35. Rc2 {[%clk 0:00:24.6]} 35... Be5 {[%clk
0:01:28]} 36. Bf3 {[%clk 0:00:21.2]} 36... Qd6 {[%clk 0:01:24.7]} 37. Qh4 {[%clk
0:00:17.6]} 37... Kg7 {[%clk 0:01:15.9]} 38. Qe4 {[%clk 0:00:13.6]} 38... Rc8
{[%clk 0:01:03.9]} 39. Re2 {[%clk 0:00:13.2]} 39... Bf6 {[%clk 0:01:03]} 40. Qd5
{[%clk 0:00:11.7]} 40... Qxd5 {[%clk 0:01:01.6]} 41. Bxd5 {[%clk 0:00:12.6]}
41... Kf8 {[%clk 0:01:01.8]} 42. f4 {[%clk 0:00:11.4]} 42... Re8 {[%clk
0:01:00.3]} 43. Rc2 {[%clk 0:00:09.2]} 43... Ke7 {[%clk 0:00:13.7]} 44. c7
{[%clk 0:00:09.5]} 44... Kd7 {[%clk 0:00:14.1]} 45. Bc6+ {[%clk 0:00:10]} 1-0

[Event "Early-Titled-Tuesday-Blitz-June-18-2024"]
[Site "Chess.com"]
[Date "2024.06.18"]
[Round "11"]
[White "betta2004"]
[Black "KoshkaMatrioshka"]
[Result "1-0"]
[WhiteElo "2481"]
[BlackElo "2575"]
[TimeControl "180+1"]
[EndTime "10:08:17 PDT"]
[Termination "betta2004 won on time"]

1. Nf3 {[%clk 0:03:00.9]} 1... d5 {[%clk 0:02:56.5]} 2. b3 {[%clk 0:02:55.5]}
2... h6 {[%clk 0:02:55.7]} 3. Bb2 {[%clk 0:02:55.4]} 3... e6 {[%clk 0:02:55.5]}
4. e3 {[%clk 0:02:55.8]} 4... Nf6 {[%clk 0:02:56]} 5. d4 {[%clk 0:02:55.7]} 5...
b6 {[%clk 0:02:56.2]} 6. Nbd2 {[%clk 0:02:45]} 6... Bb7 {[%clk 0:02:56.6]} 7.
Bd3 {[%clk 0:02:43.5]} 7... Bd6 {[%clk 0:02:55.5]} 8. Qe2 {[%clk 0:02:31.1]}
8... Ne4 {[%clk 0:02:52.8]} 9. Ne5 {[%clk 0:02:27.8]} 9... Nxd2 {[%clk
0:02:48.3]} 10. Qxd2 {[%clk 0:02:26.5]} 10... Nd7 {[%clk 0:02:38.9]} 11. f4
{[%clk 0:02:20.5]} 11... Qh4+ {[%clk 0:02:31.9]} 12. g3 {[%clk 0:02:19.8]} 12...
Qe7 {[%clk 0:02:32.5]} 13. O-O-O {[%clk 0:02:18.7]} 13... Nxe5 {[%clk
0:02:26.3]} 14. fxe5 {[%clk 0:02:03.4]} 14... Ba3 {[%clk 0:02:26.3]} 15. Rhf1
{[%clk 0:02:02.8]} 15... Bxb2+ {[%clk 0:02:25.8]} 16. Kxb2 {[%clk 0:02:03.7]}
16... c5 {[%clk 0:02:06.2]} 17. Bb5+ {[%clk 0:02:01.9]} 17... Kd8 {[%clk
0:02:05.7]} 18. e4 {[%clk 0:02:00.8]} 18... a6 {[%clk 0:02:05.2]} 19. Be2 {[%clk
0:01:55.2]} 19... Kc7 {[%clk 0:01:45.6]} 20. exd5 {[%clk 0:01:44.3]} 20... exd5
{[%clk 0:01:44]} 21. Qf4 {[%clk 0:01:39]} 21... Rhf8 {[%clk 0:01:16.4]} 22. e6+
{[%clk 0:01:35.3]} 22... Qd6 {[%clk 0:01:16.8]} 23. exf7 {[%clk 0:01:32.1]}
23... Qxf4 {[%clk 0:01:14.5]} 24. Rxf4 {[%clk 0:01:33]} 24... Rad8 {[%clk
0:01:09.9]} 25. Bh5 {[%clk 0:01:29.5]} 25... Bc6 {[%clk 0:00:52.2]} 26. Re1
{[%clk 0:01:28.6]} 26... c4 {[%clk 0:00:34]} 27. c3 {[%clk 0:01:22.9]} 27... Rd6
{[%clk 0:00:28]} 28. Re8 {[%clk 0:01:17.5]} 28... Rd8 {[%clk 0:00:27.9]} 29.
Re7+ {[%clk 0:01:14.9]} 29... Rd7 {[%clk 0:00:27.4]} 30. Re6 {[%clk 0:01:05.5]}
30... Rd6 {[%clk 0:00:26]} 31. Rxd6 {[%clk 0:00:58.2]} 31... Kxd6 {[%clk
0:00:26.3]} 32. h4 {[%clk 0:00:58.9]} 32... Bd7 {[%clk 0:00:24.4]} 33. g4 {[%clk
0:00:50.4]} 33... Be6 {[%clk 0:00:21.8]} 34. g5 {[%clk 0:00:51]} 34... hxg5
{[%clk 0:00:21.4]} 35. hxg5 {[%clk 0:00:51.9]} 35... b5 {[%clk 0:00:17.4]} 36.
g6 {[%clk 0:00:51.6]} 36... Ke7 {[%clk 0:00:17.3]} 37. Bg4 {[%clk 0:00:47.2]}
37... Bxg4 {[%clk 0:00:16.3]} 38. Rxg4 {[%clk 0:00:48.1]} 38... Kf6 {[%clk
0:00:15.2]} 39. Rg1 {[%clk 0:00:45.3]} 39... a5 {[%clk 0:00:15.3]} 40. Rg2
{[%clk 0:00:41.9]} 40... Kf5 {[%clk 0:00:14.4]} 41. Kc2 {[%clk 0:00:37.3]} 41...
Kf6 {[%clk 0:00:14.3]} 42. Kd2 {[%clk 0:00:37.6]} 42... Rb8 {[%clk 0:00:08.8]}
43. Rf2+ {[%clk 0:00:36.5]} 43... Ke7 {[%clk 0:00:09]} 44. Rf5 {[%clk
0:00:35.7]} 44... Rd8 {[%clk 0:00:08.3]} 45. Re5+ {[%clk 0:00:34.6]} 45... Kf8
{[%clk 0:00:08.7]} 46. bxc4 {[%clk 0:00:31.8]} 46... bxc4 {[%clk 0:00:08.7]} 47.
Ke3 {[%clk 0:00:32.4]} 47... a4 {[%clk 0:00:09.1]} 48. Kf4 {[%clk 0:00:32.7]}
48... a3 {[%clk 0:00:09.5]} 49. Kf5 {[%clk 0:00:33.2]} 49... Rb8 {[%clk
0:00:01]} 50. Rxd5 {[%clk 0:00:32.3]} 50... Rc8 {[%clk 0:00:01.6]} 51. Re5
{[%clk 0:00:30.7]} 1-0

[Event "Early-Titled-Tuesday-Blitz-June-18-2024"]
[Site "Chess.com"]
[Date "2024.06.18"]
[Round "11"]
[White "SaraBlackPanther"]
[Black "Kirill_Klukin"]
[Result "1/2-1/2"]
[WhiteElo "2721"]
[BlackElo "2863"]
[TimeControl "180+1"]
[EndTime "10:08:19 PDT"]
[Termination "Game drawn by repetition"]

1. d4 {[%clk 0:03:00.9]} 1... Nf6 {[%clk 0:02:59.1]} 2. c4 {[%clk 0:03:00.7]}
2... Nc6 {[%clk 0:02:59.5]} 3. Nf3 {[%clk 0:02:59.2]} 3... e6 {[%clk 0:02:59.5]}
4. a3 {[%clk 0:02:59.5]} 4... d6 {[%clk 0:02:59]} 5. Nc3 {[%clk 0:02:58.7]} 5...
g6 {[%clk 0:02:59.4]} 6. g3 {[%clk 0:02:56.5]} 6... Bg7 {[%clk 0:03:00]} 7. Bg2
{[%clk 0:02:56.2]} 7... O-O {[%clk 0:03:00.7]} 8. O-O {[%clk 0:02:56]} 8... e5
{[%clk 0:03:01.2]} 9. dxe5 {[%clk 0:02:53.2]} 9... dxe5 {[%clk 0:03:01.5]} 10.
Qxd8 {[%clk 0:02:52.1]} 10... Rxd8 {[%clk 0:03:02.4]} 11. Bg5 {[%clk 0:02:51.8]}
11... Re8 {[%clk 0:02:53.2]} 12. Nd5 {[%clk 0:02:48.8]} 12... Nxd5 {[%clk
0:02:49.2]} 13. cxd5 {[%clk 0:02:49.7]} 13... Nd4 {[%clk 0:02:45]} 14. Nxd4
{[%clk 0:02:42.1]} 14... exd4 {[%clk 0:02:45.1]} 15. Rac1 {[%clk 0:02:42.4]}
15... Be5 {[%clk 0:02:16.8]} 16. e3 {[%clk 0:02:30.7]} 16... dxe3 {[%clk
0:02:10.2]} 17. Bxe3 {[%clk 0:02:29.8]} 17... Bf5 {[%clk 0:02:03.8]} 18. b3
{[%clk 0:02:25.7]} 18... Re7 {[%clk 0:01:53.5]} 19. Bc5 {[%clk 0:02:17.6]} 19...
Bd6 {[%clk 0:01:52.9]} 20. b4 {[%clk 0:02:12.8]} 20... a5 {[%clk 0:01:29.9]} 21.
b5 {[%clk 0:02:05.6]} 21... Bd3 {[%clk 0:01:23.2]} 22. Bxd6 {[%clk 0:01:53.4]}
22... cxd6 {[%clk 0:01:22.3]} 23. Rfe1 {[%clk 0:01:54]} 23... Rxe1+ {[%clk
0:01:20]} 24. Rxe1 {[%clk 0:01:54.9]} 24... Bxb5 {[%clk 0:01:20.6]} 25. Rb1
{[%clk 0:01:54.3]} 25... Ba6 {[%clk 0:01:16.5]} 26. Rb6 {[%clk 0:01:52.1]} 26...
Rd8 {[%clk 0:01:16.1]} 27. Bf1 {[%clk 0:01:51.7]} 27... Bxf1 {[%clk 0:01:09.1]}
28. Kxf1 {[%clk 0:01:52.6]} 28... Rd7 {[%clk 0:01:00.5]} 29. Ke2 {[%clk
0:01:51.5]} 29... Kg7 {[%clk 0:01:00.6]} 30. Kd3 {[%clk 0:01:50.4]} 30... Kf6
{[%clk 0:01:01.2]} 31. Kd4 {[%clk 0:01:49.7]} 31... Ke7 {[%clk 0:00:42.3]} 32.
h4 {[%clk 0:01:45.1]} 32... h5 {[%clk 0:00:42.1]} 33. Rb5 {[%clk 0:01:40]} 33...
Rc7 {[%clk 0:00:42.3]} 34. Rxa5 {[%clk 0:01:40.1]} 34... Rc2 {[%clk 0:00:40.6]}
35. Ke3 {[%clk 0:01:35.1]} 35... Kf6 {[%clk 0:00:36.1]} 36. Rb5 {[%clk
0:01:33.2]} 36... Rc3+ {[%clk 0:00:35.2]} 37. Ke4 {[%clk 0:01:32.7]} 37... Rxa3
{[%clk 0:00:35.1]} 38. Rxb7 {[%clk 0:01:31.4]} 38... Ra4+ {[%clk 0:00:35.2]} 39.
Ke3 {[%clk 0:01:31.6]} 39... Ra5 {[%clk 0:00:29.8]} 40. Ke4 {[%clk 0:01:30.1]}
40... Ra4+ {[%clk 0:00:25.6]} 41. Ke3 {[%clk 0:01:28.9]} 41... Ra3+ {[%clk
0:00:26.2]} 42. Ke4 {[%clk 0:01:28]} 42... Ra2 {[%clk 0:00:25.5]} 43. Rd7 {[%clk
0:01:19.7]} 43... Ra4+ {[%clk 0:00:23.9]} 44. Ke3 {[%clk 0:01:18.3]} 44... Ra6
{[%clk 0:00:22.9]} 45. Ke4 {[%clk 0:01:12.3]} 45... Ra4+ {[%clk 0:00:22.7]} 46.
Ke3 {[%clk 0:01:11.8]} 46... Ra6 {[%clk 0:00:23.1]} 47. f3 {[%clk 0:01:06.7]}
47... Kg7 {[%clk 0:00:16.6]} 48. Ke4 {[%clk 0:00:59.7]} 48... Ra4+ {[%clk
0:00:15.8]} 49. Ke3 {[%clk 0:00:59.5]} 49... Ra3+ {[%clk 0:00:16.2]} 50. Kf4
{[%clk 0:00:58.4]} 50... Ra4+ {[%clk 0:00:15.8]} 51. Ke3 {[%clk 0:00:56.9]}
51... Ra6 {[%clk 0:00:13.1]} 52. Rc7 {[%clk 0:00:53.7]} 52... Kf6 {[%clk
0:00:12.2]} 53. Rd7 {[%clk 0:00:50.3]} 53... Ra3+ {[%clk 0:00:12.5]} 54. Ke4
{[%clk 0:00:49.3]} 54... Ra4+ {[%clk 0:00:12.3]} 55. Ke3 {[%clk 0:00:49.1]}
55... Ra3+ {[%clk 0:00:13]} 56. Ke4 {[%clk 0:00:48.8]} 56... Ra4+ {[%clk
0:00:13.4]} 57. Ke3 {[%clk 0:00:49.1]} 57... Ra6 {[%clk 0:00:12.4]} 58. g4
{[%clk 0:00:46.9]} 58... hxg4 {[%clk 0:00:11.6]} 59. fxg4 {[%clk 0:00:47.8]}
59... Ra3+ {[%clk 0:00:11.8]} 60. Kf4 {[%clk 0:00:47.4]} 60... Ra4+ {[%clk
0:00:12.4]} 61. Kf3 {[%clk 0:00:47.5]} 61... Ra3+ {[%clk 0:00:12.9]} 62. Kf4
{[%clk 0:00:47.7]} 62... Ra4+ {[%clk 0:00:13.5]} 63. Kf3 {[%clk 0:00:47.9]}
63... Ra3+ {[%clk 0:00:11.6]} 64. Kf4 {[%clk 0:00:47.9]} 1/2-1/2